bitfinex/quotes_ETHUSD_20241023
["timestamp","ask_amount","ask_price","bid_price","bid_amount"]
[1729661438108,4.23466,2614.1,2613.6,6.88697]
[1729661438510,4.23466,2614.1,2613.6,6.88691]
[1729661438936,3.44296,2614.1,2613.6,6.88691]
[1729661439434,3.44296,2614.1,2613.6,3.44345]
[1729661439643,3.44288,2614.1,2613.6,3.44345]
[1729661439940,3.44302,2614.0,2613.5,0.77]
[1729661440138,3.43049702,2614.4,2613.5,0.77]
[1729661440139,4.23489,2613.9,2613.5,0.77]
[1729661440348,4.23489,2613.9,2613.3,0.77]
[1729661440349,0.7917,2613.9,2613.3,0.77]
[1729661440637,4.23484,2613.9,2613.4,3.44377]
[1729661441240,4.23484,2613.9,2613.4,6.88754]
[1729661441941,3.44334,2613.8,2613.3,0.77]
[1729661442145,4.23484,2613.9,2613.4,3.44378]
[1729661442311,3.44327,2613.8,2613.4,3.44378]
[1729661442711,4.23484,2613.9,2613.4,3.44378]
[1729661443624,7.67806,2613.9,2613.4,3.44378]
[1729661443943,4.23485,2613.9,2613.2,3.44397]
[1729661444306,3.44326,2613.8,2613.3,3.4439]
[1729661444504,4.23485,2613.9,2613.3,3.4439]
[1729661444859,3.44328,2613.8,2613.3,3.4439]
[1729661450350,6.88712,2613.6,2613.1,4.27018]
[1729661450548,0.797,2613.5,2613.1,4.27018]
[1729661450911,4.24066,2613.5,2613.1,0.826]
[1729661451107,0.797,2613.5,2613.1,0.826]
[1729661451338,0.797,2613.5,2613.1,4.27011]
[1729661451922,0.797,2613.7,2613.2,3.44396]
[1729661452116,4.24039,2613.7,2613.2,3.44396]
[1729661452534,4.24039,2613.7,2613.3,3.44388]
[1729661452535,0.797,2613.7,2613.3,3.44388]
[1729661452740,4.2404,2613.7,2613.3,3.44388]
[1729661452933,4.2404,2613.7,2613.1,7.71425]
[1729661453215,4.2404,2613.7,2613.2,3.44403]
[1729661454118,0.797,2613.7,2613.3,3.44388]
[1729661455858,4.24039,2613.7,2613.3,3.44388]
[1729661456730,0.797,2613.7,2613.3,3.44388]
[1729661457057,0.797,2613.7,2613.1,0.826]
[1729661457058,4.24049,2613.7,2613.1,0.826]
[1729661457348,3.44372,2613.5,2613.0,3.44423]
[1729661457550,0.83,2613.3,2612.9,4.27177]
[1729661457765,3.44356,2613.6,2613.1,3.44411]
[1729661458264,0.83,2614.0,2613.4,0.8274]
[1729661458556,0.83,2614.0,2613.4,4.27116]
[1729661458557,3.4432,2613.9,2613.4,4.27116]
[1729661458757,3.4432,2613.9,2613.5,3.44364]
[1729661459110,0.83,2614.0,2613.5,3.44364]
[1729661459111,4.27302,2614.0,2613.5,3.44364]
[1729661459312,0.83,2614.0,2613.5,3.44364]
[1729661459555,0.83,2614.0,2613.5,6.88722]
[1729661459858,0.83,2614.0,2613.5,3.44358]
[1729661460059,4.27299,2614.0,2613.5,3.44358]
[1729661461067,3.44295,2614.1,2613.7,0.8274]
[1729661461915,4.27279,2614.2,2613.7,0.8274]
[1729661462853,4.27279,2614.2,2613.7,4.27077]
[1729661463059,3.44288,2614.1,2613.7,0.8274]
[1729661463574,6.87319702,2614.3,2613.7,7.71409]
[1729661463857,3.44285,2614.2,2613.7,4.27071]
[1729661464517,0.83,2614.4,2613.7,5.042108]
[1729661464714,6.87315702,2614.3,2613.8,3.44319]
[1729661465251,3.44266,2614.3,2613.8,3.44319]
[1729661465619,3.44266,2614.3,2613.7,0.8274]
[1729661465850,3.44279,2614.2,2613.7,4.27078]
[1729661469551,6.88561,2614.2,2613.7,4.27078]
[1729661469932,3.44279,2614.2,2613.7,4.27078]
[1729661470527,3.44288,2614.1,2613.7,0.8274]
[1729661471746,3.44302,2614.0,2613.7,0.8274]
[1729661471945,6.87362702,2613.9,2613.4,4.19934]
[1729661472533,3.44327,2613.8,2613.4,0.7556]
[1729661475392,3.43049702,2613.9,2613.4,0.7556]
[1729661475551,4.20485,2614.0,2613.4,4.19931]
[1729661475751,3.44315,2613.9,2613.4,4.19931]
[1729661476469,4.20485,2614.0,2613.4,7.64302]
[1729661476864,7.64792,2614.0,2613.4,7.64302]
[1729661477364,3.44313,2613.9,2613.4,4.19931]
[1729661478964,4.20485,2614.0,2613.5,3.44359]
[1729661479162,3.44305,2614.0,2613.5,3.44359]
[1729661480190,3.44313,2613.9,2613.5,3.44359]
[1729661480389,3.44313,2613.9,2613.4,4.19938]
[1729661482448,3.44305,2614.0,2613.5,0.7556]
[1729661482653,3.44305,2614.0,2613.6,3.44351]
[1729661483200,3.44305,2614.0,2613.5,4.19925]
[1729661485782,3.44305,2614.0,2613.6,3.44351]
[1729661486701,4.20463,2614.2,2613.8,0.8052]
[1729661488504,1.68751889,2614.0,2613.8,0.8052]
[1729661488860,1.68751889,2613.9,2613.8,0.8052]
[1729661490221,1.68751889,2614.0,2613.8,0.8052]
[1729661490426,1.68751889,2613.9,2613.8,0.8052]
[1729661493121,1.68751889,2614.0,2613.8,0.8052]
[1729661494523,4.20558,2614.4,2613.8,1.574392]
[1729661494725,1.68751889,2614.1,2613.8,5.017652]
[1729661496425,1.68751889,2614.5,2614.1,3.4428]
[1729661496596,1.68751889,2614.4,2614.2,0.8052]
[1729661496996,1.68751889,2614.3,2614.2,0.8052]
[1729661499929,1.68751889,2614.3,2613.8,0.769192]
[1729661499930,0.8269,2614.2,2613.8,5.023362]
[1729661500229,0.8269,2614.2,2613.6,7.6979]
[1729661500230,1.68751889,2613.9,2613.6,7.6979]
[1729661500397,7.69783787,2614.2,2613.6,4.25444]
[1729661500590,11.14063787,2614.2,2613.7,3.44338]
[1729661501064,7.69782787,2614.2,2613.7,3.44338]
[1729661502696,4.2697,2614.2,2613.7,3.44338]
[1729661503429,7.71252,2614.2,2613.7,3.44338]
[1729661503613,4.2697,2614.2,2613.7,3.44338]
[1729661504732,3.44294,2614.1,2613.6,4.25444]
[1729661506009,3.44294,2614.1,2613.7,3.44339]
[1729661506347,4.26964,2614.2,2613.7,3.44339]
[1729661507044,4.26964,2614.2,2613.7,4.213173]
[1729661507217,0.8269,2614.2,2613.7,0.769783]
[1729661507419,0.8269,2614.2,2613.8,3.44325]
[1729661507614,3.44257,2614.4,2614.0,0.811]
[1729661507820,3.4426,2614.3,2613.8,0.811]
[1729661508215,3.44276,2614.2,2613.8,0.811]
[1729661508811,3.44262,2614.3,2613.8,4.25419]
[1729661509005,3.44275,2614.2,2613.8,4.25419]
[1729661509206,3.44271,2614.3,2613.8,4.25419]
[1729661509420,3.44273,2614.2,2613.8,4.25419]
[1729661510635,3.4426,2614.3,2613.8,4.25419]
[1729661511924,10.31321787,2614.4,2613.8,4.25419]
[1729661512124,3.44264,2614.3,2613.8,4.25419]
[1729661514036,3.44276,2614.2,2613.8,0.811]
[1729661515582,6.88561,2614.2,2613.8,0.811]
[1729661515786,7.65721,2614.2,2613.8,0.811]
[1729661516685,4.21436,2614.2,2613.8,0.811]
[1729661516890,6.88556,2614.2,2613.8,0.811]
[1729661517046,6.88558,2614.2,2613.8,0.811]
[1729661517246,3.44276,2614.2,2613.8,0.811]
[1729661518474,3.44276,2614.2,2613.8,4.25425]
[1729661519013,6.88557,2614.2,2613.8,0.811]
[1729661519289,3.44276,2614.2,2613.8,0.811]
[1729661520077,3.44276,2614.2,2613.5,0.774]
[1729661520078,3.44309,2614.0,2613.5,0.774]
[1729661520394,5.13081306,2614.0,2613.6,3.44351]
[1729661520576,5.13081306,2614.0,2613.6,4.40634304]
[1729661520781,1.68772306,2614.0,2613.6,4.40634304]
[1729661521394,5.13046306,2614.2,2613.8,0.774]
[1729661521703,8.57329306,2614.2,2613.8,0.774]
[1729661522774,5.13046306,2614.2,2613.8,0.774]
[1729661523007,5.13073306,2614.0,2613.5,4.21762]
[1729661523202,5.90233306,2614.0,2613.5,4.21762]
[1729661524465,5.90233306,2614.0,2613.5,0.774]
[1729661524466,1.68772306,2613.8,2613.5,0.774]
[1729661524810,1.68772306,2613.7,2613.5,0.774]
[1729661524995,1.68772306,2613.6,2613.5,0.774]
[1729661525200,1.68772306,2613.7,2613.5,0.774]
[1729661525606,3.44314,2613.9,2613.5,0.774]
[1729661525607,1.68772306,2613.8,2613.5,0.774]
[1729661526470,1.68772306,2613.9,2613.5,4.21762]
[1729661526971,1.68772306,2614.0,2613.6,3.44349]
[1729661527614,1.68772306,2614.0,2613.5,7.6612]
[1729661527910,1.68772306,2614.0,2613.5,4.21758]
[1729661528315,1.68772306,2614.0,2613.6,3.4435]
[1729661528681,4.21442,2614.2,2613.6,3.4435]
[1729661528682,3.44282,2614.2,2613.7,4.21737]
[1729661528897,5.13054306,2614.2,2613.7,4.21737]
[1729661529102,4.21415,2614.4,2614.0,0.774]
[1729661529296,1.68772306,2614.3,2614.0,0.774]
[1729661529497,1.63772306,2614.3,2614.0,0.774]
[1729661530002,1.68772306,2614.2,2614.0,0.774]
[1729661530315,6.88512,2614.4,2614.0,0.774]
[1729661530316,1.68772306,2614.3,2614.0,0.774]
[1729661530670,3.44234,2614.5,2614.0,4.98299]
[1729661530873,1.68772306,2614.4,2614.0,4.98299]
[1729661531243,3.4424,2614.5,2614.0,4.98299]
[1729661532070,1.68772306,2614.3,2614.0,4.98299]
[1729661532267,1.68772306,2614.5,2614.0,4.98299]
[1729661532468,1.68772306,2614.5,2614.1,0.842604]
[1729661532642,6.88457,2614.6,2614.1,0.842604]
[1729661532643,1.68772306,2614.4,2614.1,0.842604]
[1729661535837,5.13008306,2614.5,2614.1,0.842604]
[1729661536032,1.68772306,2614.4,2614.1,0.842604]
[1729661536344,1.68772306,2614.3,2614.1,0.842604]
[1729661536539,1.68772306,2614.3,2614.0,4.21698]
[1729661537271,1.68772306,2614.4,2614.1,3.44285]
[1729661538370,1.68772306,2614.5,2614.2,0.8113]
[1729661538530,1.68772306,2614.6,2614.2,0.8113]
[1729661538964,1.68772306,2614.6,2614.2,4.25397]
[1729661539277,1.68772306,2614.5,2614.3,0.77731999]
[1729661539447,1.68772306,2614.5,2614.3,4.21990999]
[1729661539633,1.68772306,2614.6,2614.3,4.21990999]
[1729661540838,4.24679,2614.9,2614.3,7.66235999]
[1729661540839,1.68772306,2614.7,2614.3,7.66235999]
[1729661541071,1.68772306,2614.7,2614.4,0.8113]
[1729661541375,1.68772306,2614.8,2614.4,0.8113]
[1729661541535,1.68772306,2614.7,2614.4,0.8113]
[1729661542348,3.44195,2614.8,2614.4,1.314414]
[1729661542552,1.68772306,2614.7,2614.4,0.8113]
[1729661542792,1.68772306,2614.7,2614.4,4.25375]
[1729661542961,1.68772306,2614.7,2614.4,5.023377]
[1729661543483,3.44156,2615.1,2614.6,4.25344]
[1729661543703,1.68772306,2615.1,2614.7,3.44199]
[1729661544050,1.68772306,2615.1,2614.7,7.82095165]
[1729661544295,1.68772306,2615.2,2614.8,3.44192]
[1729661544442,1.68772306,2615.2,2614.9,4.25309]
[1729661544953,1.68772306,2615.1,2614.9,0.8113]
[1729661548990,1.68772306,2615.0,2614.9,0.8113]
[1729661549348,3.44142,2615.2,2614.9,0.8113]
[1729661549349,1.68772306,2615.1,2614.9,0.8113]
[1729661551784,1.68772306,2615.0,2614.9,0.8113]
[1729661553379,1.68772306,2615.0,2614.6,0.793]
[1729661553606,1.68772306,2614.8,2614.6,0.793]
[1729661553808,3.44168,2615.0,2614.6,0.793]
[1729661553809,1.68772306,2614.7,2614.6,0.793]
[1729661554013,1.68772306,2614.7,2614.4,1.562627]
[1729661554327,7.24161,2615.7,2614.9,0.793]
[1729661554507,1.68772306,2615.2,2614.9,0.793]
[1729661554701,1.68772306,2615.0,2614.9,0.793]
[1729661555016,1.68772306,2615.1,2614.9,0.793]
[1729661556518,4.24204,2615.4,2614.9,4.23479]
[1729661556519,1.68772306,2615.2,2614.9,4.23479]
[1729661557931,1.68772306,2615.2,2614.9,0.793]
[1729661558833,1.68772306,2615.1,2614.9,0.793]
[1729661559894,1.68772306,2615.2,2614.9,0.793]
[1729661560631,1.68772306,2615.3,2614.9,0.793]
[1729661561133,1.68772306,2615.2,2614.9,0.793]
[1729661561335,1.68772306,2615.3,2614.9,4.23474]
[1729661561554,5.12896306,2615.4,2615.0,3.44165]
[1729661562097,5.12896306,2615.4,2615.0,3.51812561]
[1729661562409,4.22526,2615.7,2615.2,4.23708]
[1729661562611,1.68772306,2615.5,2615.3,0.423708]
[1729661562827,1.68772306,2615.5,2615.2,0.7957]
[1729661564333,0.7845,2615.7,2615.2,4.23703]
[1729661564334,1.68772306,2615.6,2615.2,4.23703]
[1729661565137,1.68772306,2615.6,2615.2,0.7957]
[1729661565834,5.12861306,2615.6,2615.2,0.7957]
[1729661566041,5.12861306,2615.6,2615.2,1.38818731]
[1729661566538,1.68772306,2615.6,2615.2,4.82958731]
[1729661566695,1.68772306,2615.7,2615.2,4.82958731]
[1729661567097,5.12849306,2615.7,2615.2,4.82958731]
[1729661567716,1.68772306,2615.6,2615.2,4.82958731]
[1729661567914,1.68772306,2615.6,2615.3,0.48295873]
[1729661570812,1.68772306,2615.6,2615.3,3.92423873]
[1729661571198,1.68772306,2615.7,2615.3,3.92423873]
[1729661572618,5.12848306,2615.7,2615.3,0.48295873]
[1729661572820,1.68772306,2615.6,2615.3,0.48295873]
[1729661575336,1.68772306,2615.6,2615.4,0.5312526]
[1729661576907,1.68772306,2615.7,2615.4,0.5312526]
[1729661577508,1.68772306,2615.6,2615.4,0.5312526]
[1729661578946,1.68772306,2615.7,2615.4,0.5312526]
[1729661579150,4.22501,2615.9,2615.5,1.51907326]
[1729661579303,1.68772306,2615.7,2615.5,1.51907326]
[1729661579504,4.22501,2615.9,2615.5,4.96009326]
[1729661579505,0.7845,2615.9,2615.5,4.96009326]
[1729661579710,5.12809306,2616.0,2615.5,4.96002326]
[1729661580045,1.68772306,2616.0,2615.6,3.44087]
[1729661580245,1.68772306,2615.9,2615.7,0.84008433]
[1729661580460,1.68772306,2616.0,2615.6,3.44087]
[1729661581356,3.44024,2616.1,2615.6,3.44087]
[1729661581665,1.68772306,2616.0,2615.5,4.95997326]
[1729661582021,1.68772306,2616.0,2615.6,3.44081]
[1729661582222,1.68772306,2616.0,2615.7,0.84007833]
[1729661584038,1.68772306,2615.9,2615.7,0.84007833]
[1729661585583,1.68772306,2616.1,2615.7,4.28083833]
[1729661585723,1.68772306,2616.1,2615.8,4.21832]
[1729661585929,1.68772306,2616.0,2615.8,0.7777]
[1729661586161,1.68772306,2616.1,2615.8,0.7777]
[1729661587898,4.21088,2616.3,2615.8,4.21829]
[1729661588184,1.68772306,2616.2,2615.9,0.765904]
[1729661588384,1.68772306,2616.2,2615.9,4.206394]
[1729661588557,1.68772306,2616.2,2615.9,7.646794]
[1729661588749,1.68772306,2616.2,2615.9,4.206304]
[1729661589345,1.68772306,2616.2,2615.9,7.646734]
[1729661589547,3.43966,2616.6,2616.1,4.2087]
[1729661589752,5.12738306,2616.6,2616.1,4.2087]
[1729661589939,1.68772306,2616.5,2616.1,4.2087]
[1729661590143,1.68772306,2616.5,2616.1,7.64886]
[1729661590369,1.68772306,2616.5,2616.1,4.2087]
[1729661590587,1.68772306,2616.5,2616.1,7.64885]
[1729661590743,1.68772306,2616.5,2616.1,5.22660165]
[1729661591446,1.68772306,2616.5,2616.2,3.44009]
[1729661591746,1.68772306,2616.5,2616.1,8.66675165]
[1729661591946,1.68772306,2616.2,2616.1,1.01790165]
[1729661592184,1.68772306,2616.2,2615.7,3.44069]
[1729661592373,1.68772306,2616.2,2615.8,3.44058]
[1729661592558,1.68772306,2616.1,2615.8,3.44058]
[1729661592879,1.68772306,2616.1,2615.7,3.44069]
[1729661593384,1.68772306,2616.2,2615.7,6.88136]
[1729661593679,1.68772306,2616.2,2615.7,4.44857563]
[1729661593842,1.68772306,2616.2,2615.7,7.88925563]
[1729661594041,1.68772306,2616.2,2615.7,4.44857563]
[1729661594241,1.68772306,2616.1,2615.7,4.44857563]
[1729661595087,5.12796306,2616.1,2615.7,1.00790563]
[1729661595444,5.12796306,2616.1,2615.7,4.44865563]
[1729661595640,1.68772306,2616.1,2615.7,4.44865563]
[1729661595939,5.12782306,2616.2,2615.7,4.44865563]
[1729661600190,5.12782306,2616.2,2615.7,1.00790563]
[1729661600494,6.43946,2616.7,2615.3,0.7686]
[1729661600495,1.68772306,2615.8,2615.3,0.7686]
[1729661600782,1.68772306,2615.8,2615.2,0.55676763]
[1729661600783,5.12862306,2615.6,2615.2,0.55676763]
[1729661600992,3.4409,2615.6,2615.3,0.47669076]
[1729661601144,1.68772306,2615.5,2615.3,0.47669076]
[1729661601345,5.12862306,2615.6,2615.1,0.7686]
[1729661601548,3.44104,2615.5,2615.1,0.7686]
[1729661601760,5.12862306,2615.6,2615.1,5.14409131]
[1729661604899,3.4409,2615.6,2615.1,5.14409131]
[1729661605896,2.45212306,2615.7,2615.1,0.7686]
[1729661605897,1.68772306,2615.3,2615.1,0.7686]
[1729661606199,1.68772306,2615.3,2614.9,0.7886]
[1729661606200,3.4413,2615.3,2614.9,0.7886]
[1729661606376,4.2729,2615.3,2614.9,0.7886]
[1729661606576,5.96062306,2615.3,2614.9,0.7886]
[1729661606795,0.8316,2615.3,2614.9,1.72462531]
[1729661607303,4.27289,2615.3,2614.9,1.72462531]
[1729661607892,0.8316,2615.3,2614.9,1.72462531]
[1729661608196,4.27292,2615.3,2614.9,1.72462531]
[1729661608998,5.96064306,2615.3,2614.9,1.72462531]
[1729661609304,5.96064306,2615.3,2615.0,0.51665653]
[1729661609305,0.8316,2615.3,2615.0,0.51665653]
[1729661609475,5.12876306,2615.5,2615.0,0.51665653]
[1729661610412,5.96021306,2615.6,2615.1,0.7886]
[1729661610586,5.12861306,2615.6,2615.1,0.7886]
[1729661610786,5.12861306,2615.6,2615.1,4.23014]
[1729661612882,5.12861306,2615.6,2615.1,0.7886]
[1729661614077,5.12861306,2615.6,2615.1,1.78388521]
[1729661614992,3.44089,2615.6,2615.1,1.78388521]
[1729661615317,5.12861306,2615.6,2615.1,1.78388521]
[1729661617529,5.12878306,2615.5,2615.1,1.78388521]
[1729661617746,5.12913306,2615.2,2614.6,0.7886]
[1729661618052,5.12913306,2615.2,2614.6,7.4408]
[1729661618053,5.12934306,2615.1,2614.6,7.4408]
[1729661618354,0.8316,2615.5,2614.9,3.4417]
[1729661618355,4.27274,2615.5,2614.9,3.4417]
[1729661619350,1.68772306,2615.4,2614.9,3.4417]
[1729661620637,5.96046306,2615.5,2615.0,0.7985]
[1729661621011,3.441,2615.6,2615.0,0.7985]
[1729661621012,5.12869306,2615.6,2615.0,4.31656337]
[1729661621211,1.68772306,2615.5,2615.1,0.94459864]
[1729661621447,5.12874306,2615.5,2615.0,4.24009]
[1729661624951,3.44102,2615.5,2615.0,4.24009]
[1729661625977,3.44102,2615.5,2615.0,4.31656337]
[1729661626540,3.44102,2615.5,2615.0,4.24009]
[1729661627049,5.12874306,2615.5,2615.0,4.24009]
[1729661627255,5.12874306,2615.5,2615.0,5.17706231]
[1729661628183,3.44102,2615.5,2615.0,5.17706231]
[1729661629890,3.44102,2615.5,2615.0,8.61864231]
[1729661630182,3.44089,2615.6,2615.2,0.7985]
[1729661630387,6.88187,2615.6,2615.2,0.7985]
[1729661630677,3.4411,2615.5,2615.2,0.7985]
[1729661632457,3.44089,2615.6,2615.2,1.31621423]
[1729661632676,8.56962306,2615.6,2615.2,1.31621423]
[1729661632872,6.8819,2615.6,2615.2,1.31621423]
[1729661633050,3.44103,2615.5,2615.2,1.31621423]
[1729661634691,3.44103,2615.5,2615.2,0.7985]
[1729661638189,8.56960306,2615.6,2615.2,0.7985]
[1729661640615,3.44106,2615.5,2615.2,0.7985]
[1729661641665,5.90983306,2615.4,2614.8,0.7841]
[1729661641894,5.90983306,2615.4,2614.9,3.44177]
[1729661642068,3.44121,2615.4,2614.9,3.44177]
[1729661642611,1.68772306,2615.5,2615.2,0.7841]
[1729661642816,3.44081,2615.7,2615.2,4.2255]
[1729661643099,5.12853306,2615.7,2615.2,4.2255]
[1729661643301,5.12853306,2615.7,2615.3,0.43019713]
[1729661643505,3.4409,2615.6,2615.3,0.43019713]
[1729661643805,1.68772306,2615.5,2615.3,0.43019713]
[1729661645768,5.12886306,2615.5,2615.2,0.7841]
[1729661645975,5.12886306,2615.5,2615.0,4.22568]
[1729661646891,5.12886306,2615.5,2615.0,7.66728]
[1729661647793,5.12886306,2615.5,2615.0,4.30215308]
[1729661648106,5.12886306,2615.5,2615.1,3.44153]
[1729661648403,5.12886306,2615.5,2615.2,0.77436831]
[1729661650717,5.12882306,2615.5,2615.2,0.77436831]
[1729661650885,5.12882306,2615.5,2615.0,4.22568]
[1729661651303,5.12882306,2615.5,2615.0,7.66727]
[1729661651498,5.12882306,2615.5,2615.0,4.22568]
[1729661652275,5.12882306,2615.5,2615.0,7.66727]
[1729661652586,5.95252306,2615.5,2615.1,3.44153]
[1729661652775,5.95252306,2615.5,2615.1,4.32813644]
[1729661652975,9.39362306,2615.5,2615.1,0.88660644]
[1729661653171,5.95252306,2615.5,2615.1,0.88660644]
[1729661653717,2.51142306,2615.5,2615.1,4.32808644]
[1729661655312,5.95244306,2615.5,2615.1,0.88660644]
[1729661655511,5.95244306,2615.5,2615.0,4.22568]
[1729661655718,1.68772306,2615.1,2614.9,1.19885437]
[1729661656015,1.68772306,2615.1,2614.6,4.64097437]
[1729661656016,5.12927306,2615.1,2614.6,4.64097437]
[1729661656217,3.44155,2615.1,2614.6,4.64097437]
[1729661656439,5.12927306,2615.1,2614.6,9.50073408]
[1729661656711,5.12927306,2615.1,2614.6,6.05861408]
[1729661656888,5.12927306,2615.1,2614.6,4.85975971]
[1729661657413,5.12927306,2615.1,2614.6,1.41764971]
[1729661657414,1.68772306,2614.9,2614.6,1.41764971]
[1729661657586,1.68772306,2614.8,2614.6,1.41764971]
[1729661657791,2.51142306,2614.9,2614.4,8.08366437]
[1729661657990,2.51142306,2614.9,2614.4,4.64124437]
[1729661658211,2.51142306,2614.9,2614.4,3.44239]
[1729661658513,2.51142306,2614.9,2614.5,3.44231]
[1729661661435,2.51142306,2614.9,2614.5,3.44227]
[1729661661636,2.51142306,2614.9,2614.5,4.37943031]
[1729661661941,0.8237,2614.9,2614.5,4.37943031]
[1729661662904,0.8237,2614.9,2614.5,7.82170031]
[1729661663608,0.8237,2614.9,2614.5,4.37943031]
[1729661663796,0.8237,2614.9,2614.5,4.37942031]
[1729661664229,0.8237,2614.9,2614.5,7.82168031]
[1729661664936,0.8237,2614.9,2614.5,4.37942031]
[1729661665098,0.8237,2614.9,2614.5,7.82168031]
[1729661665700,0.8237,2614.9,2614.5,4.37942031]
[1729661666038,0.8237,2614.9,2614.5,4.37941031]
[1729661666565,0.8237,2614.9,2614.5,7.82168031]
[1729661666771,1.68772306,2614.8,2614.5,0.93716031]
[1729661666942,5.95325306,2614.9,2614.4,3.44239]
[1729661667144,0.8237,2614.9,2614.5,3.4423]
[1729661670475,5.95329306,2614.9,2614.4,3.44239]
[1729661670639,2.51142306,2614.9,2614.4,3.44239]
[1729661670838,2.51142306,2614.9,2614.4,6.88478]
[1729661671080,2.50972306,2614.5,2614.0,8.55885437]
[1729661671382,1.68772306,2614.2,2613.8,4.21779]
[1729661671602,1.68772306,2614.3,2613.8,5.54025]
[1729661671791,1.68772306,2614.3,2613.9,3.44311]
[1729661672950,1.68772306,2614.3,2614.0,3.44297]
[1729661673177,1.68772306,2614.3,2614.0,4.341277]
[1729661675901,4.26435,2614.5,2614.0,4.341277]
[1729661675902,2.50972306,2614.5,2614.1,3.44285]
[1729661679401,0.822,2614.5,2614.2,3.44271]
[1729661679607,2.50972306,2614.5,2614.2,3.44271]
[1729661683412,0.822,2614.5,2614.2,3.44271]
[1729661683619,1.68772306,2614.6,2614.2,3.44271]
[1729661683620,2.43882306,2614.8,2614.3,4.24477]
[1729661683850,2.43882306,2614.8,2614.4,3.44246]
[1729661684058,1.68772306,2614.7,2614.4,3.44246]
[1729661684857,1.68772306,2614.9,2614.5,3.44231]
[1729661685061,1.68772306,2614.8,2614.5,4.211013]
[1729661686368,1.68772306,2614.9,2614.5,4.211013]
[1729661686948,1.68772306,2615.0,2614.6,0.8022]
[1729661687148,5.88045306,2615.1,2614.6,4.24439]
[1729661687450,5.88045306,2615.1,2614.6,5.26634666]
[1729661687633,1.68772306,2615.0,2614.6,5.26634666]
[1729661688385,1.68772306,2614.9,2614.6,1.82415666]
[1729661688556,1.68772306,2614.9,2614.6,0.8022]
[1729661688878,1.68772306,2614.8,2614.6,0.8022]
[1729661689107,1.68772306,2614.9,2614.6,0.8022]
[1729661689587,1.68772306,2615.0,2614.6,0.8022]
[1729661689882,1.68772306,2615.0,2614.6,4.2444]
[1729661690084,1.68772306,2615.0,2614.6,5.013066]
[1729661694471,1.68772306,2614.9,2614.6,1.570866]
[1729661698488,1.68772306,2614.9,2614.6,0.8022]
[1729661699392,3.44175,2615.0,2614.6,0.8022]
[1729661699697,5.12947306,2615.0,2614.6,0.8022]
[1729661699902,1.68772306,2615.0,2614.6,0.8022]
[1729661700474,3.44181,2614.9,2614.6,0.8022]
[1729661700675,1.68772306,2614.8,2614.4,0.7961]
[1729661700998,1.68772306,2614.8,2614.4,1.29779867]
[1729661701195,1.68772306,2614.5,2614.0,1.99495437]
[1729661701512,5.89371306,2614.7,2614.1,3.44276]
[1729661702115,1.68772306,2614.6,2614.1,3.44276]
[1729661702321,1.68772306,2614.7,2614.2,3.87419633]
[1729661702522,1.68772306,2614.7,2614.3,4.23869]
[1729661703500,1.68772306,2614.6,2614.3,0.7961]
[1729661703706,1.68772306,2614.6,2614.2,0.43153633]
[1729661703707,1.68772306,2614.5,2614.2,0.43153633]
[1729661704016,0.7639,2614.2,2613.7,0.7961]
[1729661704231,1.68772306,2614.0,2613.7,0.7961]
[1729661704531,1.68772306,2614.0,2613.5,3.44363]
[1729661704532,1.68772306,2613.8,2613.5,3.44363]
[1729661704675,1.68772306,2613.8,2613.4,4.23987]
[1729661704883,1.68772306,2613.8,2613.4,5.29690574]
[1729661705203,5.89478306,2613.9,2613.4,5.29690574]
[1729661706575,1.68772306,2613.7,2613.4,1.85313574]
[1729661706770,1.68772306,2613.7,2613.2,4.24015]
[1729661706771,1.68772306,2613.6,2613.2,4.24015]
[1729661707018,1.68772306,2613.7,2613.2,4.24015]
[1729661707372,1.68772306,2613.7,2613.2,7.6841]
[1729661707576,3.44327,2613.8,2613.3,3.44392]
[1729661707776,1.68772306,2613.8,2613.3,3.44392]
[1729661708029,1.68772306,2613.8,2613.4,3.44378]
[1729661708392,1.68772306,2614.0,2613.5,3.44361]
[1729661708592,5.89458306,2614.1,2613.6,3.44351]
[1729661708916,1.68772306,2614.0,2613.6,3.44351]
[1729661710677,1.68772306,2613.9,2613.6,3.44351]
[1729661710910,1.68772306,2614.0,2613.6,6.88696]
[1729661711275,1.68772306,2614.0,2613.6,3.44345]
[1729661711687,1.68772306,2613.9,2613.6,3.44345]
[1729661712323,1.68772306,2613.9,2613.5,4.23973]
[1729661713796,1.68772306,2613.9,2613.5,4.23975]
[1729661714201,1.68772306,2613.8,2613.1,5.13180306]
[1729661714524,5.92122306,2613.7,2613.3,0.7675]
[1729661714733,0.7901,2613.7,2613.3,4.21134]
[1729661714916,2.47782306,2613.7,2613.3,4.21134]
[1729661715111,0.7901,2613.7,2613.3,4.21134]
[1729661715504,1.68772306,2613.6,2613.3,0.7675]
[1729661715901,3.44372,2613.5,2613.1,0.7675]
[1729661716103,1.68772306,2613.4,2613.1,0.7675]
[1729661716335,1.68772306,2613.4,2612.9,3.44434]
[1729661716510,1.68772306,2613.4,2612.9,5.06949331]
[1729661716690,3.4438,2613.4,2612.9,5.06949331]
[1729661717115,5.13138306,2613.5,2613.0,3.44429]
[1729661718708,1.68772306,2613.3,2612.9,0.7675]
[1729661719070,5.13152306,2613.4,2612.9,4.21186]
[1729661719244,5.13152306,2613.4,2612.9,5.14626331]
[1729661719558,1.68772306,2613.4,2613.0,3.44431]
[1729661720267,5.13151306,2613.4,2613.0,3.44431]
[1729661720844,1.68772306,2613.4,2613.0,3.44431]
[1729661721728,5.13138306,2613.5,2613.0,3.44424]
[1729661721914,5.13138306,2613.5,2613.0,4.12762664]
[1729661722723,5.13138306,2613.5,2613.1,3.44417]
[1729661723047,4.2335,2613.7,2613.2,0.7675]
[1729661723048,5.92122306,2613.7,2613.2,0.7675]
[1729661723858,1.68772306,2613.6,2613.2,0.7675]
[1729661724155,1.68772306,2613.6,2613.2,4.21154]
[1729661724357,1.68772306,2613.5,2613.2,4.21154]
[1729661725062,1.68772306,2613.6,2613.2,4.21154]